fUST/lending_fUST_20250923
["ID","MTS","AMOUNT","RATE_DAILY","PERIOD"]
[387157569,1758598240495,-480.0,0.00020461,2]
[387157570,1758598240504,-547.89,0.00020461,2]
[387157571,1758598240513,-487.3295846,0.00020461,2]
[387157574,1758598240523,-226.09215763,0.00020461,2]
[387157576,1758598240532,-204.17640498,0.00020461,2]
[387157578,1758598240542,-484.42303751,0.00020461,2]
[387157580,1758598240551,-480.0,0.00020461,2]
[387157582,1758598240560,-480.0,0.00020461,2]
[387157584,1758598240570,-480.0,0.00020461,2]
[387157586,1758598240583,-505.4033716,0.00020461,2]
[387157588,1758598240592,-480.0,0.00020461,2]
[387157590,1758598240601,-480.0,0.00020461,2]
[387157592,1758598240610,-388.46347517,0.00020461,2]
[387157594,1758598240619,-484.40701984,0.00020461,2]
[387157596,1758598240629,-816.15,0.00020461,2]
[387157598,1758598240639,-500.00796071,0.00020461,2]
[387157600,1758598240648,-174032.45861021,0.00020462,2]
[387157880,1758598243469,-372.00701841,0.00020462,2]
[387157883,1758598243481,-3251.00526928,0.00020462,2]
[387158190,1758598246707,-340.66259635,0.00020462,2]
[387158393,1758598312281,300.0,0.00027397,120]
[387158398,1758598542930,-155.63315733,0.000198,2]
[387158400,1758598545839,-7.54309622,0.000198,2]
[387158401,1758598619685,427.66375998,0.00027397,120]
[387158402,1758598646198,-165.48631378,0.00019293,2]
[387158403,1758598648482,-250.0,0.00019293,2]
[387158404,1758598651038,-224.37166608,0.00019293,2]
[387158405,1758598680227,194.67,0.00015485,2]
[387158475,1758599432710,-309.7,0.0001988,3]
[387158479,1758599432837,-480.0,0.00019888,2]
[387158480,1758599432853,-480.0,0.00019888,2]
[387158481,1758599432862,-78.49976914,0.00019888,2]
[387158482,1758599432874,-401.50023086,0.00019888,2]
[387158483,1758599432884,-480.0,0.00019888,2]
[387158484,1758599432893,-489.6517845,0.00019888,2]
[387158485,1758599432903,-516.49817495,0.00019889,2]
[387158486,1758599432913,-563.57072115,0.00019889,2]
[387158487,1758599432923,-369.5317252,0.00019889,2]
[387158488,1758599432933,-480.0,0.00019889,2]
[387158489,1758599432943,-480.0,0.00019889,2]
[387158490,1758599432952,-480.0,0.00019889,2]
[387158491,1758599432962,-545.27563175,0.00019889,2]
[387158492,1758599432972,-480.0,0.00019889,2]
[387158493,1758599432982,-1935.37,0.00019889,2]
[387158494,1758599432991,-480.0,0.00019889,2]
[387158495,1758599433007,-480.0,0.00019889,2]
[387158496,1758599433018,-480.0,0.00019889,2]
[387158497,1758599433027,-480.0,0.00019889,2]
[387158498,1758599433037,-480.0,0.00019889,2]
[387158499,1758599433048,-480.0,0.00019889,2]
[387158500,1758599433057,-480.0,0.00019889,2]
[387158501,1758599433067,-480.0,0.00019889,2]
[387158502,1758599433077,-480.0,0.00019889,2]
[387158503,1758599433087,-480.0,0.00019889,2]
[387158504,1758599433097,-480.0,0.00019889,2]
[387158505,1758599433109,-480.0,0.00019889,2]
[387158506,1758599433118,-207.1174616,0.00019889,2]
[387158507,1758599433128,-492.15505902,0.00019889,2]
[387158508,1758599433138,-480.0,0.00019889,2]
[387158509,1758599433150,-493.10887481,0.00019889,2]
[387158510,1758599433160,-569.18891317,0.00019889,2]
[387158511,1758599433177,-480.0,0.00019889,2]
[387158512,1758599433187,-484.29177819,0.00019889,2]
[387158513,1758599433197,-480.0,0.00019889,2]
[387158514,1758599433207,-480.0,0.00019889,2]
[387158515,1758599433218,-485.53319478,0.00019889,2]
[387158516,1758599433228,-480.0,0.00019889,2]
[387158517,1758599433245,-1049.1,0.00019889,2]
[387158518,1758599433255,-494.28577607,0.00019889,2]
[387158519,1758599433266,-480.0,0.00019889,2]
[387158520,1758599433276,-557.09598084,0.00019889,2]
[387158521,1758599433287,-511.26181451,0.00019889,2]
[387158522,1758599433297,-496.23373243,0.00019889,2]
[387158523,1758599433308,-480.0,0.00019889,2]
[387158524,1758599433318,-480.0,0.00019889,2]
[387158525,1758599433328,-480.0,0.00019889,2]
[387158526,1758599433338,-487.666028,0.00019889,2]
[387158527,1758599433349,-486.06272213,0.00019889,2]
[387158528,1758599433360,-312.00542417,0.00019889,2]
[387158529,1758599433371,-480.0,0.00019889,2]
[387158530,1758599433381,-398.8413615,0.00019889,2]
[387158531,1758599433391,-480.0,0.00019889,2]
[387158532,1758599433401,-480.0,0.00019889,2]
[387158533,1758599433411,-480.0,0.00019889,2]
[387158534,1758599433420,-480.0,0.00019889,2]
[387158535,1758599433430,-481.98824479,0.00019889,2]
[387158536,1758599433440,-9655.10681762,0.00019889,2]
[387158537,1758599433449,-18835.03308636,0.0001989,2]
[387158538,1758599433462,-887.80068365,0.0001989,2]
[387158539,1758599433474,-2704.7768211,0.0001989,2]
[387158573,1758599438488,-535.20695461,0.00019889,2]
[387158575,1758599438498,-227.7827657,0.0001989,2]
[387158578,1758599438509,-791.15330908,0.0001989,2]
[387158582,1758599438541,-13582.60873102,0.0001989,2]
[387158589,1758599438596,-485.47782603,0.0001989,2]
[387158780,1758599440390,-480.0,0.00019888,2]
[387158782,1758599440400,-120064.44294642,0.0001989,2]
[387158784,1758599440409,-1941.96552774,0.000199,2]
[387158786,1758599440418,-491.88214117,0.00019989,2]
[387158788,1758599440427,-336.99443658,0.00019989,2]
[387158790,1758599440436,-490.90298096,0.00019989,2]
[387158792,1758599440445,-483.65399711,0.00019989,2]
[387158794,1758599440454,-493.11732194,0.00019989,2]
[387158796,1758599440463,-480.0,0.00019989,2]
[387158798,1758599440472,-492.15215985,0.00019989,2]
[387158800,1758599440481,-480.0,0.00019989,2]
[387158802,1758599440490,-480.0,0.00019989,2]
[387158804,1758599440500,-496.54183942,0.00019989,2]
[387158806,1758599440509,-480.0,0.00019989,2]
[387158808,1758599440519,-491.78978776,0.00019989,2]
[387158810,1758599440528,-480.0,0.00019989,2]
[387158812,1758599440537,-491.73347607,0.00019989,2]
[387158814,1758599440546,-496.18705084,0.00019989,2]
[387158815,1758599440556,-480.0,0.00019989,2]
[387158817,1758599440565,-480.0,0.00019989,2]
[387158819,1758599440574,-489.76549374,0.00019989,2]
[387158821,1758599440583,-296.55443252,0.00019989,2]
[387158823,1758599440592,-480.0,0.00019989,2]
[387158825,1758599440601,-494.25225344,0.00019989,2]
[387158827,1758599440611,-464.87612666,0.00019989,2]
[387158829,1758599440620,-480.0,0.00019989,2]
[387158831,1758599440629,-480.0,0.00019989,2]
[387158833,1758599440639,-480.0,0.00019989,2]
[387158835,1758599440648,-480.0,0.00019989,2]
[387158837,1758599440657,-480.0,0.00019989,2]
[387158839,1758599440666,-489.34435666,0.00019989,2]
[387158841,1758599440676,-480.0,0.00019989,2]
[387158843,1758599440685,-480.0,0.00019989,2]
[387158845,1758599440694,-584.09111183,0.00019989,2]
[387158847,1758599440704,-480.0,0.00019989,2]
[387158849,1758599440713,-480.0,0.00019989,2]
[387158851,1758599440723,-100000.0,0.0001999,2]
[387158853,1758599440732,-480.0,0.00020162,2]
[387158855,1758599440742,-480.0,0.00020162,2]
[387158857,1758599440751,-480.0,0.00020162,2]
[387158859,1758599440760,-480.0,0.00020162,2]
[387158861,1758599440769,-480.0,0.00020162,2]
[387158863,1758599440779,-480.0,0.00020163,2]
[387158865,1758599440788,-480.0,0.00020163,2]
[387158868,1758599440798,-1935.37,0.00020163,2]
[387158870,1758599440807,-480.0,0.00020163,2]
[387158872,1758599440819,-480.0,0.00020163,2]
[387158874,1758599440828,-480.0,0.00020163,2]
[387158876,1758599440838,-480.0,0.00020163,2]
[387158878,1758599440847,-154.17003697,0.00020163,2]
[387158880,1758599440857,-554.88422734,0.00020163,2]
[387158882,1758599440866,-480.0,0.00020163,2]
[387158884,1758599440875,-499.84498605,0.00020163,2]
[387158886,1758599440884,-480.0,0.00020163,2]
[387158888,1758599440894,-480.0,0.00020163,2]
[387158890,1758599440903,-480.0,0.00020163,2]
[387158892,1758599440912,-305.65911796,0.00020163,2]
[387158894,1758599440921,-480.0,0.00020163,2]
[387158896,1758599440931,-518.83180922,0.00020163,2]
[387158898,1758599440941,-480.0,0.00020163,2]
[387158900,1758599440951,-480.0,0.00020163,2]
[387158902,1758599440960,-480.0,0.00020163,2]
[387158904,1758599440969,-1049.1,0.00020163,2]
[387158905,1758599440979,-480.0,0.00020163,2]
[387158907,1758599440988,-480.0,0.00020163,2]
[387158908,1758599440998,-480.0,0.00020163,2]
[387158911,1758599441007,-480.0,0.00020163,2]
[387158913,1758599441017,-480.0,0.00020163,2]
[387158915,1758599441026,-480.0,0.00020163,2]
[387158916,1758599441036,-480.0,0.00020263,2]
[387158918,1758599441045,-480.0,0.00020263,2]
[387158920,1758599441054,-480.0,0.00020263,2]
[387158922,1758599441063,-480.0,0.00020263,2]
[387158924,1758599441072,-483.80349811,0.00020263,2]
[387158926,1758599441082,-480.0,0.00020263,2]
[387158928,1758599441091,-480.0,0.00020263,2]
[387158930,1758599441102,-480.0,0.00020263,2]
[387158932,1758599441112,-480.0,0.00020263,2]
[387158934,1758599441121,-480.0,0.00020263,2]
[387158936,1758599441131,-387.75397473,0.00020263,2]
[387158938,1758599441140,-480.0,0.00020263,2]
[387158940,1758599441149,-480.0,0.00020263,2]
[387158942,1758599441158,-480.0,0.00020263,2]
[387158944,1758599441168,-737.69547761,0.0002032,2]
[387158946,1758599441178,-558.39,0.00020436,2]
[387158948,1758599441187,-480.0,0.00020436,2]
[387158950,1758599441196,-480.0,0.00020436,2]
[387158952,1758599441206,-480.0,0.00020436,2]
[387158954,1758599441215,-480.0,0.00020437,2]
[387158956,1758599441224,-480.0,0.00020437,2]
[387158958,1758599441234,-632.75078611,0.00020437,2]
[387158960,1758599441247,-1302.61921389,0.00020437,2]
[387158962,1758599441256,-480.0,0.00020437,2]
[387158964,1758599441265,-480.0,0.00020437,2]
[387158966,1758599441275,-480.0,0.00020437,2]
[387158968,1758599441284,-480.0,0.00020437,2]
[387158970,1758599441294,-480.0,0.00020437,2]
[387158972,1758599441303,-480.0,0.00020437,2]
[387158974,1758599441313,-480.0,0.00020437,2]
[387158976,1758599441322,-480.0,0.00020437,2]
[387158978,1758599441331,-480.0,0.00020437,2]
[387158980,1758599441341,-480.0,0.00020437,2]
[387158982,1758599441350,-480.0,0.00020437,2]
[387158984,1758599441359,-480.0,0.00020437,2]
[387158986,1758599441368,-1049.1,0.00020437,2]
[387158988,1758599441377,-581.35858412,0.00020437,2]
[387158990,1758599441386,-480.0,0.00020437,2]
[387158992,1758599441395,-480.0,0.00020437,2]
[387158993,1758599441404,-480.0,0.00020437,2]
[387158995,1758599441413,-480.0,0.00020437,2]
[387158997,1758599441422,-480.0,0.00020437,2]
[387158999,1758599441432,-482.50323124,0.00020461,2]
[387159000,1758599441442,-1231.4743686,0.00020462,2]
[387159001,1758599441451,-480.0,0.00020537,2]
[387159002,1758599441460,-546.15,0.00020537,2]
[387159003,1758599441469,-480.0,0.00020537,2]
[387159004,1758599441478,-480.0,0.00020537,2]
[387159005,1758599441487,-480.0,0.00020537,2]
[387159006,1758599441496,-480.0,0.00020537,2]
[387159007,1758599441505,-480.0,0.00020537,2]
[387159008,1758599441514,-380.56120667,0.00020537,2]
[387159009,1758599441524,-480.0,0.00020537,2]
[387159010,1758599441534,-480.0,0.00020537,2]
[387159011,1758599441543,-480.0,0.00020537,2]
[387159012,1758599441553,-480.0,0.00020537,2]
[387159013,1758599441562,-511.27845808,0.00020585,2]
[387159014,1758599441571,-504.79077858,0.00020585,2]
[387159015,1758599441579,-500.0,0.00020585,2]
[387159016,1758599441589,-150.80019626,0.00020585,2]
[387159017,1758599441598,-500.75275517,0.00020585,2]
[387159018,1758599441607,-503.95477085,0.00020585,2]
[387159019,1758599441616,-178.55621229,0.00020585,2]
[387159020,1758599441625,-228.65657985,0.00020585,2]
[387159021,1758599441634,-500.0,0.00020585,2]
[387159022,1758599441643,-503.65618012,0.00020616,2]
[387159023,1758599441652,-502.95707318,0.00020618,2]
[387159024,1758599441661,-513.34061294,0.00020618,2]
[387159025,1758599441670,-500.0,0.00020618,2]
[387159026,1758599441679,-503.03176046,0.00020672,2]
[387159027,1758599441688,-501.11915401,0.00020702,2]
[387159029,1758599441697,-480.0,0.0002071,2]
[387159031,1758599441706,-480.0,0.0002071,2]
[387159033,1758599441715,-575.52,0.00020711,2]
[387159034,1758599441724,-1935.37,0.00020711,2]
[387159036,1758599441733,-480.0,0.00020711,2]
[387159038,1758599441743,-480.0,0.00020711,2]
[387159040,1758599441752,-480.0,0.00020711,2]
[387159043,1758599441762,-480.0,0.00020711,2]
[387159045,1758599441773,-480.0,0.00020711,2]
[387159047,1758599441783,-480.0,0.00020711,2]
[387159049,1758599441794,-480.0,0.00020711,2]
[387159051,1758599441803,-33.54332239,0.00020711,2]
[387159053,1758599441816,-446.45667761,0.00020711,2]
[387159055,1758599441825,-480.0,0.00020711,2]
[387159057,1758599441834,-1049.1,0.00020711,2]
[387159059,1758599441844,-480.0,0.00020711,2]
[387159061,1758599441853,-480.0,0.00020711,2]
[387159063,1758599441863,-480.0,0.00020711,2]
[387159065,1758599441872,-151.0,0.00020711,2]
[387159066,1758599441880,-151.0,0.00020711,2]
[387159068,1758599441890,-151.0,0.00020711,2]
[387159070,1758599441900,-151.0,0.0002075,2]
[387159073,1758599441910,-500.0,0.00020783,2]
[387159074,1758599441920,-480.0,0.00020811,2]
[387159076,1758599441930,-480.0,0.00020811,2]
[387159078,1758599441939,-480.0,0.00020811,2]
[387159081,1758599441948,-480.0,0.00020811,2]
[387159083,1758599441958,-569.21296106,0.00020811,2]
[387159084,1758599441967,-480.0,0.00020811,2]
[387159086,1758599441977,-480.0,0.00020811,2]
[387159088,1758599441986,-480.0,0.00020811,2]
[387159090,1758599441995,-430.90092192,0.00020811,2]
[387159092,1758599442004,-480.0,0.00020811,2]
[387159094,1758599442014,-1822.05884041,0.0002089,2]
[387159561,1758599446565,-185.34,0.00019888,2]
[387159563,1758599446575,-480.0,0.00019889,2]
[387159565,1758599446585,-156.0,0.00020436,2]
[387159567,1758599446595,-32.45934507,0.0002089,2]
[387160505,1758599457045,8561.18,0.00029135,60]
[387163351,1758600632915,-642.1458986,0.00018867,2]
[387163352,1758600632924,-383.91478791,0.00019196,2]
[387163354,1758600632933,-500.0,0.00019196,2]
[387163356,1758600632943,-163.17625355,0.00019788,2]
[387163358,1758600632952,-1193.59455627,0.00019788,2]
[387163360,1758600632963,-160.76899082,0.00019789,2]
[387163361,1758600632972,-480.0,0.00019789,2]
[387163362,1758600632982,-480.0,0.00019789,2]
[387163363,1758600632991,-480.0,0.00019789,2]
[387163364,1758600633001,-480.0,0.00019789,2]
[387163365,1758600633011,-480.0,0.00019789,2]
[387163366,1758600633020,-2296.12,0.00019789,2]
[387163367,1758600633030,-480.0,0.00019789,2]
[387163368,1758600633040,-480.0,0.00019789,2]
[387163369,1758600633051,-480.0,0.00019789,2]
[387163370,1758600633062,-480.0,0.00019789,2]
[387163371,1758600633072,-106.76272085,0.00019789,2]
[387163384,1758600638736,-373.23727915,0.00019789,2]
[387163386,1758600638746,-480.0,0.00019789,2]
[387163388,1758600638755,-480.0,0.00019789,2]
[387163390,1758600638764,-143.50383599,0.00019789,2]
[387163391,1758600638789,-336.49616401,0.00019789,2]
[387163392,1758600638802,-480.0,0.00019789,2]
[387163393,1758600638812,-480.0,0.00019789,2]
[387163394,1758600638822,-480.0,0.00019789,2]
[387163395,1758600638832,-480.0,0.00019789,2]
[387163396,1758600638844,-480.0,0.00019789,2]
[387163397,1758600638854,-480.0,0.00019789,2]
[387163398,1758600638864,-480.0,0.00019789,2]
[387163399,1758600638875,-1203.77,0.00019789,2]
[387163400,1758600638884,-66.87323985,0.00019789,2]
[387163401,1758600638896,-413.12676015,0.00019789,2]
[387163402,1758600638905,-480.0,0.00019789,2]
[387163403,1758600638915,-480.0,0.00019789,2]
[387163404,1758600638924,-480.0,0.00019789,2]
[387163405,1758600638933,-480.0,0.00019789,2]
[387163406,1758600638942,-480.0,0.00019789,2]
[387163407,1758600638951,-1336.45658018,0.0001979,2]
[387163451,1758600640573,-255.39335402,0.0001979,2]
[387163453,1758600640584,-156988.43844819,0.0001979,2]
[387163458,1758600640625,-697.59919671,0.0001979,2]
[387163465,1758600640680,-380.36253887,0.0001979,2]
[387163467,1758600640691,-7548.56827355,0.0001979,2]
[387163755,1758600643674,-346.8200008,0.0001979,2]
[387163758,1758600643686,-851.98011771,0.0001979,2]
[387163760,1758600643697,-4310.59592382,0.0001979,2]
[387164030,1758600646828,-480.0,0.00019789,2]
[387164031,1758600646837,-15070.14431193,0.0001979,2]
[387164033,1758600646850,-316.5354621,0.0001979,2]
[387165393,1758601430250,-153.42725929,0.00018022,2]
[387165394,1758601430273,-42.18606069,0.00018022,2]
[387165395,1758601435447,-453.03850909,0.00018022,2]
[387165396,1758601438283,298.85508029,0.00018,2]
[387165397,1758601440793,-117.87075834,0.00018022,2]
[387165400,1758601532882,-236.35924166,0.00018022,2]
[387165401,1758601534879,-100.39517541,0.00018022,2]
[387165402,1758601535258,108.83741195,0.00018022,2]
[387165403,1758601536270,-170.08367808,0.00018022,2]
[387165404,1758601537741,-258.77333068,0.00018022,2]
[387165405,1758601540883,-243.60106092,0.00018022,2]
[387165407,1758601542957,-160.0,0.00018022,2]
[387165408,1758601547476,-183.82220641,0.00018022,2]
[387165409,1758601552573,-209.20590083,0.00018022,2]
[387165410,1758601554437,-11.34706173,0.00018022,2]
[387165419,1758601708340,500.0,0.00018,2]
[387165452,1758601832888,-230.34887275,0.00019194,2]
[387165454,1758601832899,-179.73040439,0.00019648,2]
[387165456,1758601832908,-7.96406881,0.00019786,2]
[387165458,1758601832921,-292.03593119,0.00019786,2]
[387165459,1758601832930,-480.0,0.00019787,2]
[387165460,1758601832940,-266.08089333,0.00019787,2]
[387165461,1758601832952,-213.91910667,0.00019787,2]
[387165463,1758601832961,-480.0,0.00019787,2]
[387165465,1758601832971,-480.0,0.00019787,2]
[387165467,1758601832981,-27.22138374,0.00019787,2]
[387165469,1758601832992,-407.24226434,0.00019787,2]
[387165471,1758601833001,-480.0,0.00019787,2]
[387165474,1758601833011,-480.0,0.00019787,2]
[387165477,1758601833021,-480.0,0.00019787,2]
[387165479,1758601833030,-480.0,0.00019787,2]
[387165482,1758601833039,-515.32588682,0.00019787,2]
[387165485,1758601833048,-480.0,0.00019787,2]
[387165488,1758601833058,-480.0,0.00019787,2]
[387165491,1758601833067,-480.0,0.00019787,2]
[387165493,1758601833076,-480.0,0.00019787,2]
[387165496,1758601833086,-480.0,0.00019787,2]
[387165498,1758601833096,-480.0,0.00019787,2]
[387165500,1758601833105,-485.04190253,0.00019788,2]
[387165502,1758601833115,-403.98167597,0.00019788,2]
[387165529,1758601838837,-17431.22578886,0.00019787,2]
[387165531,1758601838847,-86.60098401,0.00019788,2]
[387165533,1758601838856,-485.0091139,0.00019788,2]
[387165535,1758601838866,-480.0,0.00019788,2]
[387165537,1758601838876,-480.0,0.00019788,2]
[387165539,1758601838886,-480.0,0.00019788,2]
[387165541,1758601838895,-480.0,0.00019788,2]
[387165543,1758601838906,-387.43357733,0.00019788,2]
[387165545,1758601838916,-480.0,0.00019788,2]
[387165547,1758601838925,-675.39890406,0.00019788,2]
[387165551,1758601838946,-304.84172063,0.00019788,2]
[387165567,1758601839060,-253.80937531,0.00019788,2]
[387165569,1758601839099,-274.27360958,0.00019788,2]
[387165572,1758601839113,-205.72639042,0.00019788,2]
[387165574,1758601839123,-480.0,0.00019788,2]
[387165576,1758601839132,-463.2736103,0.00019788,2]
[387165578,1758601839143,-16.7263897,0.00019788,2]
[387165580,1758601839153,-480.0,0.00019788,2]
[387165582,1758601839167,-480.0,0.00019788,2]
[387165584,1758601839176,-37.74861256,0.00019788,2]
[387165736,1758601840821,-2342.60138744,0.00019788,2]
[387165738,1758601840831,-480.0,0.00019788,2]
[387165740,1758601840841,-480.0,0.00019788,2]
[387165742,1758601840851,-109.19861256,0.00019788,2]
[387165763,1758601841045,-229.00869393,0.00019788,2]
[387165853,1758601843882,-141.79269351,0.00019788,2]
[387165854,1758601843892,-380.15077624,0.00019788,2]
[387165855,1758601843937,-99.84922376,0.00019788,2]
[387165856,1758601843947,-332.55868256,0.00019788,2]
[387165857,1758601843993,-147.44131744,0.00019788,2]
[387165858,1758601844002,-480.0,0.00019788,2]
[387165859,1758601844012,-480.0,0.00019788,2]
[387165860,1758601844021,-480.0,0.00019788,2]
[387165861,1758601844031,-490.60444344,0.00019788,2]
[387165862,1758601844039,-480.0,0.00019788,2]
[387165863,1758601844049,-480.0,0.00019788,2]
[387165864,1758601844058,-485.16186621,0.00019789,2]
[387165865,1758601844067,-160.76899081,0.00019789,2]
[387165866,1758601844076,-480.0,0.00019789,2]
[387165867,1758601844086,-480.0,0.00019789,2]
[387165868,1758601844095,-386.38850538,0.00019789,2]
[387165869,1758601844104,-359.95151698,0.00019789,2]
[387165870,1758601844113,-480.0,0.00019789,2]
[387165871,1758601844123,-500.0,0.00019789,2]
[387165872,1758601844132,-480.0,0.00019789,2]
[387165873,1758601844140,-301.78350024,0.00019789,2]
[387165874,1758601844149,-151.0,0.00019789,2]
[387165875,1758601844159,-491.25559302,0.00019789,2]
[387165876,1758601844170,-151.0,0.00019789,2]
[387165877,1758601844180,-151.0,0.00019789,2]
[387165878,1758601844189,-151.0,0.00019968,2]
[387165879,1758601844198,-151.0,0.00019968,2]
[387165880,1758601844208,-480.0,0.00020061,2]
[387165881,1758601844218,-480.0,0.00020061,2]
[387165882,1758601844227,-480.0,0.00020061,2]
[387165883,1758601844237,-480.0,0.00020061,2]
[387165884,1758601844246,-200.45976741,0.00020061,2]
[387165885,1758601844255,-480.0,0.00020061,2]
[387165886,1758601844265,-480.0,0.00020061,2]
[387165887,1758601844274,-480.0,0.00020061,2]
[387165888,1758601844284,-480.0,0.00020061,2]
[387165889,1758601844294,-480.0,0.00020061,2]
[387165890,1758601844304,-480.0,0.00020062,2]
[387165891,1758601844315,-480.0,0.00020062,2]
[387165892,1758601844325,-480.0,0.00020062,2]
[387165893,1758601844334,-480.0,0.00020062,2]
[387165894,1758601844344,-1234.05,0.00020062,2]
[387165895,1758601844356,-480.0,0.00020062,2]
[387165896,1758601844366,-480.0,0.00020062,2]
[387165897,1758601844376,-480.0,0.00020062,2]
[387165898,1758601844385,-480.0,0.00020062,2]
[387165899,1758601844394,-480.0,0.00020062,2]
[387165900,1758601844403,-2380.35,0.00020062,2]
[387165901,1758601844416,-480.0,0.00020062,2]
[387165902,1758601844425,-480.0,0.00020062,2]
[387165903,1758601844435,-480.0,0.00020062,2]
[387165904,1758601844451,-480.0,0.00020062,2]
[387165905,1758601844461,-480.0,0.00020062,2]
[387165906,1758601844472,-480.0,0.00020062,2]
[387165907,1758601844482,-480.0,0.00020062,2]
[387165908,1758601844492,-480.0,0.00020062,2]
[387165909,1758601844501,-500.0,0.00020063,2]
[387165910,1758601844512,-154.34511413,0.00020063,2]
[387165911,1758601844522,-160.89571802,0.00020063,2]
[387165912,1758601844533,-160.76899082,0.00020063,2]
[387165913,1758601844544,-480.0,0.00020063,2]
[387165914,1758601844554,-480.0,0.00020063,2]
[387165915,1758601844563,-480.0,0.00020063,2]
[387165916,1758601844573,-151.0,0.00020242,2]
[387165917,1758601844582,-480.0,0.00020335,2]
[387165918,1758601844592,-353.69,0.00020335,2]
[387165919,1758601844601,-480.0,0.00020335,2]
[387165920,1758601844610,-480.0,0.00020335,2]
[387165921,1758601844619,-541.74,0.00020335,2]
[387165922,1758601844629,-480.0,0.00020335,2]
[387165923,1758601844639,-480.0,0.00020335,2]
[387165924,1758601844648,-440.81981777,0.00020336,2]
[387165925,1758601844658,-480.0,0.00020336,2]
[387165926,1758601844668,-1234.05,0.00020336,2]
[387165927,1758601844677,-480.0,0.00020336,2]
[387165928,1758601844686,-480.0,0.00020336,2]
[387165929,1758601844696,-480.0,0.00020336,2]
[387165930,1758601844705,-480.0,0.00020336,2]
[387165931,1758601844718,-480.0,0.00020336,2]
[387165932,1758601844730,-2380.35,0.00020336,2]
[387165933,1758601844740,-480.0,0.00020336,2]
[387165934,1758601844750,-480.0,0.00020336,2]
[387165935,1758601844760,-480.0,0.00020336,2]
[387165936,1758601844770,-480.0,0.00020336,2]
[387165937,1758601844780,-480.0,0.00020336,2]
[387165938,1758601844790,-480.0,0.00020336,2]
[387165939,1758601844799,-500.0,0.00020337,2]
[387165940,1758601844808,-480.0,0.00020337,2]
[387165941,1758601844818,-480.0,0.00020337,2]
[387165942,1758601844827,-480.0,0.00020337,2]
[387165943,1758601844837,-566.80802204,0.00020416,2]
[387165944,1758601844847,-502.50656559,0.0002043,2]
[387165945,1758601844856,-500.0,0.00020438,2]
[387165946,1758601844866,-505.51471835,0.00020445,2]
[387165947,1758601844875,-503.04383444,0.00020445,2]
[387165948,1758601844884,-501.68505969,0.00020445,2]
[387165949,1758601844894,-514.14537366,0.00020445,2]
[387165950,1758601844903,-500.0,0.00020445,2]
[387165951,1758601844914,-500.0,0.00020445,2]
[387165952,1758601844923,-500.0,0.00020447,2]
[387165953,1758601844932,-500.0,0.00020447,2]
[387165954,1758601844942,-501.00231754,0.00020452,2]
[387165955,1758601844951,-501.79667142,0.00020452,2]
[387165956,1758601844960,-4251.55729837,0.00020511,2]
[387165957,1758601844968,-199.87050294,0.00020516,2]
[387165958,1758601844977,-353.66556902,0.00020585,2]
[387165959,1758601844987,-374.77691671,0.00020585,2]
[387165960,1758601844997,-480.0,0.00020609,2]
[387165961,1758601845007,-480.0,0.00020609,2]
[387165962,1758601845016,-480.0,0.0002061,2]
[387165963,1758601845026,-1234.05,0.0002061,2]
[387165964,1758601845036,-480.0,0.0002061,2]